[Event "44th Chess Olympiad Women 2022"]
[Site "Chennai"]
[Date "2022.08.08"]
[Round "10.33"]
[White "Roepke, Sofia"]
[Black "Chaves, Jussara"]
[Result "0-1"]
[WhiteElo "1869"]
[BlackElo "1933"]
[Annotator "NA RC"]
[PlyCount "146"]
[EventDate "2022.??.??"]
[TimeControl "60"]

1. e4 {[%emt 0:00:04]} d5 {[%emt 0:00:18]} 2. exd5 {[%emt 0:00:05]} Qxd5 {
[%emt 0:00:05]} 3. Nc3 {[%emt 0:00:12]} Qa5 {[%emt 0:00:08]} 4. g3 {[%emt 0:00:
00]} Nf6 {[%emt 0:00:31]} 5. Bg2 {[%emt 0:00:24]} c6 {[%emt 0:04:06]} 6. Nge2 {
[%emt 0:00:38]} e5 {[%emt 0:01:37]} 7. O-O {[%emt 0:03:18]} Bd6 {[%emt 0:03:29]
} 8. Rb1 {[%emt 0:12:51]} O-O {[%emt 0:01:33]} 9. a3 {[%emt 0:02:45]} Bf5 {
[%emt 0:14:43]} 10. b4 {[%emt 0:06:21]} Qc7 {[%emt 0:00:24]} 11. Bb2 {[%emt 0:
00:00]} Nbd7 {[%emt 0:02:00]} 12. d3 {[%emt 0:04:42]} Rfe8 {[%emt 0:15:05]} 13.
Qd2 {[%emt 0:08:20]} Rad8 {[%emt 0:03:16]} 14. Rbd1 {[%emt 0:08:49]} Nb6 {
[%emt 0:01:33]} 15. Rfe1 {[%emt 0:02:10]} h6 {[%emt 0:03:50]} 16. Qc1 {[%emt 0:
00:00]} Nh7 {[%emt 0:06:38]} 17. Ne4 {[%emt 0:02:28]} Bg6 {[%emt 0:08:00]} 18.
Nxd6 {[%emt 0:00:39]} Qxd6 {[%emt 0:01:43]} 19. Ba1 {[%emt 0:10:48]} Bh5 {
[%emt 0:04:09]} 20. Qb2 {[%emt 0:02:00]} f6 {[%emt 0:05:11]} 21. h3 {[%emt 0:
00:00]} Ng5 {[%emt 0:03:39]} 22. g4 {[%emt 0:00:29]} Bf7 {[%emt 0:00:24]} 23.
Nc3 {[%emt 0:02:42]} Nd5 {[%emt 0:03:10]} 24. Ne2 {[%emt 0:02:26]} Ne6 {
[%emt 0:03:48]} 25. Qb1 {[%emt 0:02:18]} Ndf4 {[%emt 0:01:29]} 26. Nxf4 {
[%emt 0:01:05]} Nxf4 {[%emt 0:00:23]} 27. Bb2 {[%emt 0:02:47]} Nxg2 {[%emt 0:
00:00]} 28. Kxg2 {[%emt 0:00:01]} Qd5+ {[%emt 0:00:28]} 29. f3 {[%emt 0:00:24]}
h5 {[%emt 0:01:05]} 30. Qc1 {[%emt 0:00:37]} Be6 {[%emt 0:03:28]} 31. Qe3 {
[%emt 0:00:31]} hxg4 {[%emt 0:00:21]} 32. hxg4 {[%emt 0:00:01]} b5 {[%emt 0:00:
00]} 33. Qe4 {[%emt 0:00:34]} Qxe4 {[%emt 0:01:16]} 34. dxe4 {[%emt 0:01:12]}
Kf7 {[%emt 0:00:04]} 35. Kf2 {[%emt 0:00:21]} Rh8 {[%emt 0:00:16]} 36. Rxd8 {
[%emt 0:00:14]} Rxd8 {[%emt 0:00:01]} 37. Ke3 {[%emt 0:00:32]} Rh8 {[%emt 0:00:
00]} 38. Bc1 {[%emt 0:02:25]} Bc4 {[%emt 0:00:28]} 39. Rd1 {[%emt 0:00:35]} Ke7
{[%emt 0:00:23]} 40. Bd2 {[%emt 0:00:36]} Rh2 {[%emt 0:01:56]} 41. Re1 {
[%emt 0:30:17]} g5 {[%emt 0:05:32]} 42. c3 {[%emt 0:00:00]} Rg2 {[%emt 0:02:53]
} 43. Bc1 {[%emt 0:00:00]} Kf7 {[%emt 0:02:49]} 44. Bd2 {[%emt 0:00:00]} Kg7 {
[%emt 0:00:45]} 45. Bc1 {[%emt 0:00:00]} Ra2 {[%emt 0:00:19]} 46. Bd2 {[%emt 0:
00:00]} Rxa3 {[%emt 0:00:23]} 47. Rd1 {[%emt 0:00:00]} Ra2 {[%emt 0:00:46]} 48.
Rb1 {[%emt 0:00:00]} a5 {[%emt 0:02:05]} 49. bxa5 {[%emt 0:00:00]} Rxa5 {
[%emt 0:00:09]} 50. Bc1 {[%emt 0:00:00]} Ra2 {[%emt 0:02:14]} 51. Rb2 {[%emt 0:
00:00]} Ra1 {[%emt 0:00:53]} 52. Bd2 {[%emt 0:00:00]} Rf1 {[%emt 0:06:58]} 53.
Rb4 {[%emt 0:00:00]} c5 {[%emt 0:01:50]} 54. Rb2 {[%emt 0:00:00]} Kf7 {[%emt 0:
00:00]} 55. Rc2 {[%emt 0:00:00]} Ke6 {[%emt 0:01:14]} 56. Rb2 {[%emt 0:00:00]}
Kd7 {[%emt 0:00:57]} 57. Rc2 {[%emt 0:00:00]} Kc6 {[%emt 0:00:13]} 58. Rb2 {
[%emt 0:00:00]} Kb6 {[%emt 0:00:24]} 59. Rc2 {[%emt 0:00:00]} Ka5 {[%emt 0:00:
00]} 60. Rc1 {[%emt 0:00:00]} Ka4 {[%emt 0:01:35]} 61. Rxf1 {[%emt 0:00:00]}
Bxf1 {[%emt 0:00:17]} 62. Be1 {[%emt 0:00:00]} Kb3 {[%emt 0:00:51]} 63. Bd2 {
[%emt 0:00:00]} Kb2 {[%emt 0:02:00]} 64. Kf2 {[%emt 0:00:00]} Bc4 {[%emt 0:00:
00]} 65. Be3 {[%emt 0:00:00]} b4 {[%emt 0:01:25]} 66. cxb4 {[%emt 0:00:00]}
cxb4 {[%emt 0:00:08]} 67. Bc5 {[%emt 0:00:00]} b3 {[%emt 0:00:10]} 68. Be7 {
[%emt 0:00:00]} Kc2 {[%emt 0:00:10]} 69. Bxf6 {[%emt 0:00:00]} b2 {[%emt 0:00:
00]} 70. Bxg5 {[%emt 0:00:00]} b1=Q {[%emt 0:00:09]} 71. Be3 {[%emt 0:00:00]}
Qd1 {[%emt 0:00:54]} 72. Kg3 {[%emt 0:00:38]} Qe1+ {[%emt 0:00:50]} 73. Bf2 {
[%emt 0:00:07]} Qc3 {[%emt 0:00:19]} 0-1

[Event "44th Chess Olympiad Women 2022"]
[Site "Chennai"]
[Date "2022.08.08"]
[Round "10.33"]
[White "Silva, Mariana Sofia T."]
[Black "Malan, Lucia"]
[Result "1/2-1/2"]
[WhiteElo "1912"]
[BlackElo "1741"]
[Annotator "NA RC"]
[PlyCount "126"]
[EventDate "2022.??.??"]
[TimeControl "60"]

1. d4 {[%emt 0:00:02]} d5 {[%emt 0:00:07]} 2. c4 {[%emt 0:00:07]} e6 {[%emt 0:
00:00]} 3. Nf3 {[%emt 0:00:06]} Nf6 {[%emt 0:00:15]} 4. g3 {[%emt 0:00:07]}
dxc4 {[%emt 0:00:27]} 5. Bg2 {[%emt 0:00:07]} Be7 {[%emt 0:00:08]} 6. O-O {
[%emt 0:00:09]} O-O {[%emt 0:00:11]} 7. Qc2 {[%emt 0:00:05]} a6 {[%emt 0:00:15]
} 8. a4 {[%emt 0:00:06]} Bd7 {[%emt 0:06:29]} 9. Qxc4 {[%emt 0:00:10]} Bc6 {
[%emt 0:00:39]} 10. Bg5 {[%emt 0:00:13]} Nbd7 {[%emt 0:06:59]} 11. Bxf6 {
[%emt 0:05:15]} Bxf6 {[%emt 0:02:10]} 12. Rd1 {[%emt 0:01:15]} Nb6 {[%emt 0:00:
00]} 13. Qc2 {[%emt 0:06:20]} Nd5 {[%emt 0:04:54]} 14. e4 {[%emt 0:05:09]} Nb4
{[%emt 0:04:22]} 15. Qd2 {[%emt 0:04:35]} Qe7 {[%emt 0:11:21]} 16. Nc3 {
[%emt 0:06:04]} Rfd8 {[%emt 0:04:38]} 17. Qe2 {[%emt 0:07:26]} g6 {[%emt 0:00:
00]} 18. h4 {[%emt 0:07:00]} b6 {[%emt 0:18:32]} 19. Rac1 {[%emt 0:01:53]} Bb7
{[%emt 0:01:28]} 20. Qe3 {[%emt 0:14:06]} c5 {[%emt 0:09:28]} 21. dxc5 {
[%emt 0:11:05]} Qxc5 {[%emt 0:09:39]} 22. Qxc5 {[%emt 0:01:07]} bxc5 {[%emt 0:
00:00]} 23. Ne1 {[%emt 0:12:27]} Bc6 {[%emt 0:04:39]} 24. a5 {[%emt 0:00:46]}
Bxc3 {[%emt 0:02:36]} 25. bxc3 {[%emt 0:03:50]} Na2 {[%emt 0:00:19]} 26. Rxd8+
{[%emt 0:01:55]} Rxd8 {[%emt 0:03:00]} 27. Rc2 {[%emt 0:03:05]} Rd1 {[%emt 0:
00:00]} 28. Kf1 {[%emt 0:02:17]} Nxc3 {[%emt 0:00:00]} 29. Bf3 {[%emt 0:02:03]}
Bb5+ {[%emt 0:00:00]} 30. Kg2 {[%emt 0:00:14]} Rxe1 {[%emt 0:00:00]} 31. Rxc3 {
[%emt 0:00:12]} c4 {[%emt 0:00:20]} 32. Rc2 {[%emt 0:02:01]} Kf8 {[%emt 0:00:
00]} 33. Be2 {[%emt 0:00:48]} Ra1 {[%emt 0:01:01]} 34. Bxc4 {[%emt 0:00:17]}
Bxc4 {[%emt 0:00:51]} 35. Rxc4 {[%emt 0:00:02]} Rxa5 {[%emt 0:00:06]} 36. Rc7 {
[%emt 0:00:14]} Kg7 {[%emt 0:01:22]} 37. Ra7 {[%emt 0:00:13]} Kf6 {[%emt 0:00:
00]} 38. Kf3 {[%emt 0:00:51]} Ra2 {[%emt 0:00:43]} 39. Ke3 {[%emt 0:00:33]} a5
{[%emt 0:00:22]} 40. Kf3 {[%emt 0:00:24]} a4 {[%emt 0:00:13]} 41. Ra5 {[%emt 0:
00:00]} a3 {[%emt 0:31:11]} 42. Kg2 {[%emt 0:01:46]} Ra1 {[%emt 0:00:39]} 43.
Kf3 {[%emt 0:00:31]} h5 {[%emt 0:00:25]} 44. Ke2 {[%emt 0:01:13]} a2 {[%emt 0:
00:00]} 45. Kf3 {[%emt 0:00:20]} e5 {[%emt 0:00:00]} 46. Ra6+ {[%emt 0:00:00]}
Ke7 {[%emt 0:00:00]} 47. Ke2 {[%emt 0:00:00]} Kd7 {[%emt 0:00:00]} 48. Kf3 {
[%emt 0:00:00]} Kc7 {[%emt 0:00:00]} 49. Ke2 {[%emt 0:00:00]} Kb7 {[%emt 0:00:
00]} 50. Ra3 {[%emt 0:00:00]} Kb6 {[%emt 0:00:00]} 51. Kf3 {[%emt 0:00:00]} Kb5
{[%emt 0:00:00]} 52. Ra7 {[%emt 0:00:00]} f5 {[%emt 0:00:00]} 53. exf5 {
[%emt 0:00:00]} gxf5 {[%emt 0:01:29]} 54. Ra8 {[%emt 0:00:00]} e4+ {[%emt 0:00:
00]} 55. Kg2 {[%emt 0:00:00]} Kc4 {[%emt 0:00:00]} 56. Rc8+ {[%emt 0:00:00]}
Kd5 {[%emt 0:00:00]} 57. Ra8 {[%emt 0:00:00]} Ke6 {[%emt 0:00:00]} 58. Ra7 {
[%emt 0:00:00]} f4 {[%emt 0:00:00]} 59. Ra6+ {[%emt 0:00:00]} Kf5 {[%emt 0:00:
00]} 60. Ra5+ {[%emt 0:00:31]} Kf6 {[%emt 0:00:00]} 61. Ra6+ {[%emt 0:00:00]}
Kf5 {[%emt 0:00:00]} 62. Ra5+ {[%emt 0:00:00]} Ke6 {[%emt 0:00:00]} 63. Ra6+ {
[%emt 0:00:00]} Kf5 {[%emt 0:00:00]} 1/2-1/2

[Event "44th Chess Olympiad Women 2022"]
[Site "Chennai"]
[Date "2022.08.08"]
[Round "10.33"]
[White "Silvera, Pilar"]
[Black "Silva, Ana Ines Teixeira D"]
[Result "0-1"]
[WhiteElo "1436"]
[BlackElo "1775"]
[Annotator "NA RC"]
[PlyCount "70"]
[EventDate "2022.??.??"]
[TimeControl "60"]

1. e4 {[%emt 0:00:02]} e5 {[%emt 0:00:06]} 2. Nf3 {[%emt 0:00:09]} Nc6 {
[%emt 0:00:07]} 3. Bc4 {[%emt 0:00:10]} Nf6 {[%emt 0:00:10]} 4. d3 {[%emt 0:00:
00]} Bc5 {[%emt 0:00:10]} 5. c3 {[%emt 0:00:10]} a6 {[%emt 0:00:13]} 6. Bb3 {
[%emt 0:00:18]} d6 {[%emt 0:00:28]} 7. h3 {[%emt 0:00:42]} Ba7 {[%emt 0:00:25]}
8. Nbd2 {[%emt 0:00:36]} O-O {[%emt 0:00:51]} 9. Nf1 {[%emt 0:00:43]} h6 {
[%emt 0:03:55]} 10. g4 {[%emt 0:03:58]} Nh7 {[%emt 0:09:16]} 11. g5 {[%emt 0:
00:00]} hxg5 {[%emt 0:05:06]} 12. Rg1 {[%emt 0:02:32]} Qf6 {[%emt 0:06:58]} 13.
Qe2 {[%emt 0:04:02]} Be6 {[%emt 0:21:10]} 14. Nxg5 {[%emt 0:04:00]} Bxb3 {
[%emt 0:11:49]} 15. axb3 {[%emt 0:06:13]} Ne7 {[%emt 0:06:58]} 16. Nxh7 {
[%emt 0:20:41]} Kxh7 {[%emt 0:00:07]} 17. Ne3 {[%emt 0:00:23]} Bxe3 {[%emt 0:
00:00]} 18. Bxe3 {[%emt 0:00:40]} Ng6 {[%emt 0:00:46]} 19. Qh5+ {[%emt 0:02:24]
} Kg8 {[%emt 0:03:58]} 20. O-O-O {[%emt 0:07:21]} Nf4 {[%emt 0:02:49]} 21. Qg4
{[%emt 0:09:00]} a5 {[%emt 0:01:26]} 22. Kc2 {[%emt 0:02:13]} b5 {[%emt 0:00:
00]} 23. Rg3 {[%emt 0:06:44]} b4 {[%emt 0:01:40]} 24. Rdg1 {[%emt 0:00:27]} g6
{[%emt 0:00:07]} 25. c4 {[%emt 0:03:58]} a4 {[%emt 0:00:08]} 26. bxa4 {[%emt 0:
00:00]} Rxa4 {[%emt 0:00:47]} 27. h4 {[%emt 0:00:16]} Rb8 {[%emt 0:01:09]} 28.
h5 {[%emt 0:02:07]} b3+ {[%emt 0:00:06]} 29. Kc3 {[%emt 0:01:43]} d5 {[%emt 0:
00:00]} 30. Bc1 {[%emt 0:01:03]} Qb6 {[%emt 0:02:04]} 31. Kd2 {[%emt 0:00:14]}
Qxf2+ {[%emt 0:00:08]} 32. Kd1 {[%emt 0:01:05]} Qc2+ {[%emt 0:00:12]} 33. Ke1 {
[%emt 0:00:28]} Qxc1+ {[%emt 0:00:11]} 34. Kf2 {[%emt 0:00:06]} Qd2+ {[%emt 0:
00:00]} 35. Kf1 {[%emt 0:00:15]} Ra1+ {[%emt 0:00:07]} 0-1

[Event "44th Chess Olympiad Women 2022"]
[Site "Chennai"]
[Date "2022.08.08"]
[Round "10.34"]
[White "Ferrufino, Michelle"]
[Black "Diaz Charpentier, Kristel Meliss"]
[Result "0-1"]
[WhiteElo "1811"]
[BlackElo "1989"]
[Annotator "NA RC"]
[PlyCount "64"]
[EventDate "2022.??.??"]
[TimeControl "60"]

1. e4 {[%emt 0:00:03]} c5 {[%emt 0:00:18]} 2. Nc3 {[%emt 0:00:27]} Nc6 {
[%emt 0:00:04]} 3. f4 {[%emt 0:00:33]} e6 {[%emt 0:00:05]} 4. Nf3 {[%emt 0:00:
00]} d5 {[%emt 0:00:04]} 5. Bb5 {[%emt 0:00:34]} Nge7 {[%emt 0:00:04]} 6. exd5
{[%emt 0:00:44]} exd5 {[%emt 0:00:05]} 7. Qe2 {[%emt 0:00:32]} g6 {[%emt 0:00:
00]} 8. Bxc6+ {[%emt 0:00:35]} bxc6 {[%emt 0:00:04]} 9. Qe5 {[%emt 0:01:40]}
Rg8 {[%emt 0:00:04]} 10. O-O {[%emt 0:01:03]} Bg4 {[%emt 0:00:02]} 11. Re1 {
[%emt 0:03:14]} Bxf3 {[%emt 0:00:25]} 12. gxf3 {[%emt 0:00:15]} Bg7 {[%emt 0:
00:00]} 13. Qe2 {[%emt 0:00:46]} Kf8 {[%emt 0:00:16]} 14. Nd1 {[%emt 0:08:41]}
Nf5 {[%emt 0:00:36]} 15. c3 {[%emt 0:00:45]} Bf6 {[%emt 0:06:49]} 16. Ne3 {
[%emt 0:09:50]} Nd6 {[%emt 0:06:49]} 17. Qf2 {[%emt 0:06:54]} Bh4 {[%emt 0:00:
00]} 18. Qf1 {[%emt 0:00:20]} Bxe1 {[%emt 0:00:06]} 19. Qxe1 {[%emt 0:00:08]}
Qf6 {[%emt 0:00:56]} 20. d3 {[%emt 0:04:16]} Re8 {[%emt 0:00:39]} 21. Qf2 {
[%emt 0:00:45]} h5 {[%emt 0:05:51]} 22. Bd2 {[%emt 0:04:54]} Kg7 {[%emt 0:00:
00]} 23. Ng2 {[%emt 0:03:15]} Qf5 {[%emt 0:03:48]} 24. Qxc5 {[%emt 0:05:27]}
Qxd3 {[%emt 0:00:17]} 25. Be1 {[%emt 0:05:46]} Nf5 {[%emt 0:02:49]} 26. Bf2 {
[%emt 0:04:46]} Re2 {[%emt 0:04:30]} 27. Rf1 {[%emt 0:04:16]} Rge8 {[%emt 0:00:
00]} 28. Qxc6 {[%emt 0:03:23]} Qd2 {[%emt 0:05:31]} 29. Qb7 {[%emt 0:12:48]} h4
{[%emt 0:00:53]} 30. h3 {[%emt 0:06:13]} Ng3 {[%emt 0:00:50]} 31. Nxh4 {
[%emt 0:09:18]} Nxf1 {[%emt 0:00:36]} 32. Bd4+ {[%emt 0:00:12]} Kg8 {[%emt 0:
00:00]} 0-1

[Event "44th Chess Olympiad Women 2022"]
[Site "Chennai"]
[Date "2022.08.08"]
[Round "10.34"]
[White "Granados Ortiz, Maria Jose"]
[Black "Mayorga Araya, Sofia"]
[Result "0-1"]
[WhiteElo "1753"]
[BlackElo "1758"]
[Annotator "NA RC"]
[PlyCount "128"]
[EventDate "2022.??.??"]
[TimeControl "60"]

1. e4 {[%emt 0:00:03]} c5 {[%emt 0:00:07]} 2. Nf3 {[%emt 0:00:11]} d6 {[%emt 0:
00:00]} 3. d4 {[%emt 0:00:06]} cxd4 {[%emt 0:00:04]} 4. Nxd4 {[%emt 0:00:09]}
Nf6 {[%emt 0:00:02]} 5. Nc3 {[%emt 0:00:14]} a6 {[%emt 0:00:04]} 6. Be3 {
[%emt 0:00:35]} e5 {[%emt 0:00:05]} 7. Nb3 {[%emt 0:02:11]} Be6 {[%emt 0:00:14]
} 8. Be2 {[%emt 0:00:29]} Be7 {[%emt 0:00:27]} 9. O-O {[%emt 0:00:10]} O-O {
[%emt 0:00:04]} 10. h3 {[%emt 0:00:57]} Nbd7 {[%emt 0:00:35]} 11. Qd2 {[%emt 0:
00:00]} Qc7 {[%emt 0:00:18]} 12. Rfd1 {[%emt 0:06:49]} Rfc8 {[%emt 0:02:15]}
13. Rac1 {[%emt 0:02:04]} Nb6 {[%emt 0:02:44]} 14. Bg5 {[%emt 0:02:57]} h6 {
[%emt 0:02:46]} 15. Bh4 {[%emt 0:01:34]} Nc4 {[%emt 0:10:46]} 16. Bxc4 {
[%emt 0:01:27]} Qxc4 {[%emt 0:04:48]} 17. Na5 {[%emt 0:08:48]} Qb4 {[%emt 0:00:
00]} 18. Bxf6 {[%emt 0:05:36]} Bxf6 {[%emt 0:00:47]} 19. Nd5 {[%emt 0:01:01]}
Qxe4 {[%emt 0:16:22]} 20. Nxf6+ {[%emt 0:01:53]} gxf6 {[%emt 0:00:01]} 21. c3 {
[%emt 0:22:28]} b6 {[%emt 0:13:09]} 22. Nb3 {[%emt 0:04:02]} d5 {[%emt 0:00:14]
} 23. Qxh6 {[%emt 0:00:30]} Qg6 {[%emt 0:00:18]} 24. Qe3 {[%emt 0:01:13]} Qg5 {
[%emt 0:13:43]} 25. Re1 {[%emt 0:07:48]} Qxe3 {[%emt 0:03:12]} 26. Rxe3 {
[%emt 0:00:02]} a5 {[%emt 0:00:06]} 27. Rd1 {[%emt 0:02:06]} b5 {[%emt 0:02:13]
} 28. Nc1 {[%emt 0:01:21]} b4 {[%emt 0:01:54]} 29. Ne2 {[%emt 0:04:06]} a4 {
[%emt 0:05:59]} 30. Red3 {[%emt 0:07:42]} a3 {[%emt 0:02:30]} 31. b3 {[%emt 0:
00:00]} bxc3 {[%emt 0:01:13]} 32. Nxc3 {[%emt 0:00:31]} d4 {[%emt 0:00:28]} 33.
Ne4 {[%emt 0:00:49]} f5 {[%emt 0:07:54]} 34. Ng5 {[%emt 0:03:32]} Rc2 {[%emt 0:
00:00]} 35. Nxe6 {[%emt 0:00:09]} fxe6 {[%emt 0:00:01]} 36. R3d2 {[%emt 0:00:
00]} Rac8 {[%emt 0:00:42]} 37. b4 {[%emt 0:04:16]} Rb2 {[%emt 0:00:18]} 38. Rd3
{[%emt 0:00:27]} Rc3 {[%emt 0:00:59]} 39. R3d2 {[%emt 0:01:11]} Rxb4 {[%emt 0:
00:00]} 40. Kf1 {[%emt 0:00:44]} Rb2 {[%emt 0:01:27]} 41. Ke1 {[%emt 0:30:01]}
Rcc2 {[%emt 0:30:43]} 42. Rxc2 {[%emt 0:00:56]} Rxc2 {[%emt 0:00:01]} 43. Rd2 {
[%emt 0:00:21]} Rxd2 {[%emt 0:02:54]} 44. Kxd2 {[%emt 0:00:04]} e4 {[%emt 0:00:
00]} 45. g3 {[%emt 0:00:51]} e5 {[%emt 0:00:17]} 46. Ke2 {[%emt 0:00:11]} Kg7 {
[%emt 0:01:14]} 47. Kd2 {[%emt 0:00:03]} Kg6 {[%emt 0:00:15]} 48. Ke2 {[%emt 0:
00:00]} Kg5 {[%emt 0:00:21]} 49. Kd2 {[%emt 0:00:09]} f4 {[%emt 0:00:15]} 50.
g4 {[%emt 0:00:08]} e3+ {[%emt 0:02:16]} 51. fxe3 {[%emt 0:00:22]} fxe3+ {
[%emt 0:00:28]} 52. Kd3 {[%emt 0:00:31]} e4+ {[%emt 0:00:22]} 53. Ke2 {[%emt 0:
00:00]} Kf4 {[%emt 0:00:23]} 54. Kf1 {[%emt 0:00:48]} d3 {[%emt 0:00:17]} 55.
Ke1 {[%emt 0:00:08]} e2 {[%emt 0:00:17]} 56. Kd2 {[%emt 0:00:30]} e3+ {[%emt 0:
00:00]} 57. Kxd3 {[%emt 0:00:07]} e1=Q {[%emt 0:00:07]} 58. Kc4 {[%emt 0:00:05]
} Qd1 {[%emt 0:00:53]} 59. g5 {[%emt 0:00:08]} e2 {[%emt 0:00:32]} 60. g6 {
[%emt 0:00:05]} e1=Q {[%emt 0:00:32]} 61. g7 {[%emt 0:00:07]} Qe4+ {[%emt 0:00:
00]} 62. Kb5 {[%emt 0:00:09]} Qb7+ {[%emt 0:00:21]} 63. Kc4 {[%emt 0:00:07]}
Qc2+ {[%emt 0:00:23]} 64. Kd4 {[%emt 0:00:08]} Qd7# {[%emt 0:00:07]} 0-1

[Event "44th Chess Olympiad Women 2022"]
[Site "Chennai"]
[Date "2022.08.08"]
[Round "10.34"]
[White "Hernandez Alvarez, Tania Regla"]
[Black "Granados Diaz, Maria Esther"]
[Result "1-0"]
[WhiteElo "2058"]
[BlackElo "1888"]
[Annotator "NA RC"]
[PlyCount "67"]
[EventDate "2022.??.??"]
[TimeControl "60"]

1. Nf3 {[%emt 0:00:07]} c5 {[%emt 0:00:05]} 2. c4 {[%emt 0:00:07]} Nc6 {
[%emt 0:00:07]} 3. d4 {[%emt 0:00:12]} cxd4 {[%emt 0:00:08]} 4. Nxd4 {[%emt 0:
00:00]} g6 {[%emt 0:00:04]} 5. e4 {[%emt 0:00:16]} Bg7 {[%emt 0:00:04]} 6. Be3
{[%emt 0:00:07]} d6 {[%emt 0:00:37]} 7. Nc3 {[%emt 0:00:11]} Nf6 {[%emt 0:00:
00]} 8. Be2 {[%emt 0:00:27]} O-O {[%emt 0:00:25]} 9. O-O {[%emt 0:00:08]} Bd7 {
[%emt 0:01:37]} 10. Rc1 {[%emt 0:05:00]} Nxd4 {[%emt 0:00:32]} 11. Bxd4 {
[%emt 0:00:03]} Bc6 {[%emt 0:00:14]} 12. Bd3 {[%emt 0:02:15]} Nd7 {[%emt 0:00:
00]} 13. Bxg7 {[%emt 0:00:47]} Kxg7 {[%emt 0:00:02]} 14. Re1 {[%emt 0:01:01]}
Ne5 {[%emt 0:02:35]} 15. Re3 {[%emt 0:02:13]} Qa5 {[%emt 0:02:19]} 16. b3 {
[%emt 0:01:09]} Nxd3 {[%emt 0:00:51]} 17. Qxd3 {[%emt 0:00:28]} Rfd8 {[%emt 0:
00:00]} 18. Rd1 {[%emt 0:00:53]} a6 {[%emt 0:06:43]} 19. Qd2 {[%emt 0:03:35]}
Qg5 {[%emt 0:01:49]} 20. Nd5 {[%emt 0:02:15]} Bxd5 {[%emt 0:01:07]} 21. exd5 {
[%emt 0:00:26]} b5 {[%emt 0:00:31]} 22. Rde1 {[%emt 0:02:39]} Rd7 {[%emt 0:00:
00]} 23. h4 {[%emt 0:02:50]} Qf4 {[%emt 0:06:57]} 24. g3 {[%emt 0:07:47]} Qf6 {
[%emt 0:00:25]} 25. Kg2 {[%emt 0:00:48]} Kf8 {[%emt 0:03:39]} 26. Rf3 {[%emt 0:
00:00]} Qg7 {[%emt 0:00:30]} 27. h5 {[%emt 0:00:14]} g5 {[%emt 0:06:59]} 28.
Rc1 {[%emt 0:11:23]} h6 {[%emt 0:03:59]} 29. cxb5 {[%emt 0:06:57]} axb5 {
[%emt 0:00:17]} 30. Qe2 {[%emt 0:03:01]} Rb7 {[%emt 0:04:37]} 31. b4 {[%emt 0:
00:00]} Qe5 {[%emt 0:13:30]} 32. Qd3 {[%emt 0:02:03]} Kg7 {[%emt 0:00:22]} 33.
a3 {[%emt 0:02:12]} Raa7 {[%emt 0:16:38]} 34. Rxf7+ {[%emt 0:01:18]} 1-0

[Event "44th Chess Olympiad Women 2022"]
[Site "Chennai"]
[Date "2022.08.08"]
[Round "10.34"]
[White "Rodriguez Arrieta, Maria Elena"]
[Black "Alvarez Gutierrez, Patricia"]
[Result "1-0"]
[WhiteElo "1849"]
[BlackElo "1715"]
[Annotator "NA RC"]
[PlyCount "95"]
[EventDate "2022.??.??"]
[TimeControl "60"]

1. e4 {[%emt 0:01:13]} c5 {[%emt 0:00:09]} 2. Nf3 {[%emt 0:00:00]} e6 {[%emt 0:
00:00]} 3. d3 {[%emt 0:00:02]} Nc6 {[%emt 0:00:52]} 4. g3 {[%emt 0:00:05]} d5 {
[%emt 0:00:12]} 5. Nbd2 {[%emt 0:00:05]} Nf6 {[%emt 0:00:11]} 6. Bg2 {[%emt 0:
00:00]} Be7 {[%emt 0:00:14]} 7. O-O {[%emt 0:00:07]} O-O {[%emt 0:00:20]} 8. e5
{[%emt 0:00:24]} Nd7 {[%emt 0:00:08]} 9. Re1 {[%emt 0:00:05]} Qc7 {[%emt 0:00:
00]} 10. Qe2 {[%emt 0:00:05]} b5 {[%emt 0:00:34]} 11. Nf1 {[%emt 0:01:04]} a5 {
[%emt 0:00:38]} 12. Bf4 {[%emt 0:00:27]} a4 {[%emt 0:01:04]} 13. a3 {[%emt 0:
00:00]} b4 {[%emt 0:01:36]} 14. h4 {[%emt 0:02:15]} Qa5 {[%emt 0:03:29]} 15.
Ne3 {[%emt 0:07:47]} Nd4 {[%emt 0:04:20]} 16. Nxd4 {[%emt 0:12:36]} cxd4 {
[%emt 0:00:57]} 17. Ng4 {[%emt 0:00:05]} bxa3 {[%emt 0:09:20]} 18. bxa3 {
[%emt 0:00:04]} Rb8 {[%emt 0:00:55]} 19. h5 {[%emt 0:01:22]} Rb2 {[%emt 0:00:
00]} 20. Bc1 {[%emt 0:09:35]} Rxc2 {[%emt 0:02:38]} 21. Qxc2 {[%emt 0:00:05]}
Qxe1+ {[%emt 0:00:36]} 22. Bf1 {[%emt 0:00:20]} Nxe5 {[%emt 0:09:26]} 23. Nxe5
{[%emt 0:00:26]} Qxe5 {[%emt 0:00:09]} 24. h6 {[%emt 0:00:23]} Qf6 {[%emt 0:00:
00]} 25. hxg7 {[%emt 0:01:48]} Qxg7 {[%emt 0:00:58]} 26. Qxa4 {[%emt 0:00:05]}
Bd6 {[%emt 0:04:25]} 27. Qd1 {[%emt 0:02:35]} Qg6 {[%emt 0:06:02]} 28. Bb2 {
[%emt 0:04:23]} Be5 {[%emt 0:02:33]} 29. Qe2 {[%emt 0:01:16]} Bf6 {[%emt 0:00:
00]} 30. Rc1 {[%emt 0:05:52]} Bb7 {[%emt 0:04:43]} 31. Rc7 {[%emt 0:00:14]} Ba8
{[%emt 0:00:09]} 32. Qc2 {[%emt 0:01:41]} Be5 {[%emt 0:02:34]} 33. Rc8 {
[%emt 0:01:33]} Qg7 {[%emt 0:04:37]} 34. Qc5 {[%emt 0:00:08]} Rxc8 {[%emt 0:00:
00]} 35. Qxc8+ {[%emt 0:00:05]} Qf8 {[%emt 0:01:27]} 36. Qa6 {[%emt 0:00:05]}
Qb8 {[%emt 0:00:57]} 37. Bc1 {[%emt 0:01:05]} Qb7 {[%emt 0:03:34]} 38. Qa4 {
[%emt 0:00:14]} Qc6 {[%emt 0:00:33]} 39. Qa5 {[%emt 0:00:32]} Bc7 {[%emt 0:00:
00]} 40. Qd2 {[%emt 0:00:06]} e5 {[%emt 0:00:24]} 41. Bb2 {[%emt 0:31:45]} Qg6
{[%emt 0:30:35]} 42. Qc2 {[%emt 0:02:38]} Qc6 {[%emt 0:00:27]} 43. Qd1 {
[%emt 0:00:07]} Qg6 {[%emt 0:00:00]} 44. Qc2 {[%emt 0:00:00]} Qc6 {[%emt 0:00:
00]} 45. Qd1 {[%emt 0:00:00]} Ba5 {[%emt 0:00:00]} 46. Bc1 {[%emt 0:00:00]} Qg6
{[%emt 0:00:00]} 47. Qa4 {[%emt 0:00:00]} Qa6 {[%emt 0:00:00]} 48. Bd2 {
[%emt 0:00:00]} 1-0